Workbook

Sheet 成绩
A1: 安龙县2023年公开招聘事业单位工作人员笔试成绩折算成百分制后加上加分
A2: 报名序号 | B2: 报考部门 | C2: 报考职位 | D2: 准考证号 | E2: 科目 | F2: 笔试成绩 | G2: 加分分数 | H2: 笔试成绩折算成百分制后 加上加分 | I2: 备注
A3: 813872545 | B3: 安龙县督查督办服务中心(202301) | C3: 20230101 | D3: 20231031212 | E3: 《公共基础知识》 | F3: 104.72 | G3: 0 | H3: =F3/1.5+G3 -> 69.81
A4: 815085501 | B4: 安龙县督查督办服务中心(202301) | C4: 20230101 | D4: 20231020901 | E4: 《公共基础知识》 | F4: 99.26 | G4: 2 | H4: 68.17
A5: 813239206 | B5: 安龙县督查督办服务中心(202301) | C5: 20230101 | D5: 20231032403 | E5: 《公共基础知识》 | F5: 98.46 | G5: 2 | H5: 67.64
A6: 812199206 | B6: 安龙县督查督办服务中心(202301) | C6: 20230101 | D6: 20231034212 | E6: 《公共基础知识》 | F6: 97.38 | G6: 2 | H6: 66.92
A7: 81430427 | B7: 安龙县督查督办服务中心(202301) | C7: 20230101 | D7: 20231082927 | E7: 《公共基础知识》 | F7: 100.2 | G7: 0 | H7: 66.80
A8: 89745177 | B8: 安龙县督查督办服务中心(202301) | C8: 20230101 | D8: 20231043013 | E8: 《公共基础知识》 | F8: 96.1 | G8: 2 | H8: 66.07
A9: 813833915 | B9: 安龙县督查督办服务中心(202301) | C9: 20230101 | D9: 20231031306 | E9: 《公共基础知识》 | F9: 95.82 | G9: 2 | H9: 65.88
A10: 86845446 | B10: 安龙县督查督办服务中心(202301) | C10: 20230101 | D10: 20231061507 | E10: 《公共基础知识》 | F10: 95.8 | G10: 2 | H10: 65.87
A11: 83413756 | B11: 安龙县督查督办服务中心(202301) | C11: 20230101 | D11: 20231073629 | E11: 《公共基础知识》 | F11: 95.52 | G11: 2 | H11: 65.68
A12: 814204456 | B12: 安龙县督查督办服务中心(202301) | C12: 20230101 | D12: 20231030610 | E12: 《公共基础知识》 | F12: 94.88 | G12: 2 | H12: 65.25
A13: 84037171 | B13: 安龙县督查督办服务中心(202301) | C13: 20230101 | D13: 20231072714 | E13: 《公共基础知识》 | F13: 94.62 | G13: 2 | H13: 65.08
A14: 85713153 | B14: 安龙县督查督办服务中心(202301) | C14: 20230101 | D14: 20231063420 | E14: 《公共基础知识》 | F14: 97.02 | G14: 0 | H14: 64.68
A15: 814194307 | B15: 安龙县督查督办服务中心(202301) | C15: 20230101 | D15: 20231030620 | E15: 《公共基础知识》 | F15: 96.96 | G15: 0 | H15: 64.64
A16: 815942398 | B16: 安龙县督查督办服务中心(202301) | C16: 20230101 | D16: 20231014205 | E16: 《公共基础知识》 | F16: 96.82 | G16: 0 | H16: 64.55
A17: 814653881 | B17: 安龙县督查督办服务中心(202301) | C17: 20230101 | D17: 20231021621 | E17: 《公共基础知识》 | F17: 93.42 | G17: 2 | H17: 64.28
A18: 818446287 | B18: 安龙县督查督办服务中心(202301) | C18: 20230101 | D18: 20231010311 | E18: 《公共基础知识》 | F18: 96.34 | G18: 0 | H18: 64.23
A19: 84345752 | B19: 安龙县督查督办服务中心(202301) | C19: 20230101 | D19: 20231072221 | E19: 《公共基础知识》 | F19: 93.3 | G19: 2 | H19: 64.20
A20: 85404262 | B20: 安龙县督查督办服务中心(202301) | C20: 20230101 | D20: 20231070604 | E20: 《公共基础知识》 | F20: 92.76 | G20: 2 | H20: 63.84
A21: 810042395 | B21: 安龙县督查督办服务中心(202301) | C21: 20230101 | D21: 20231042501 | E21: 《公共基础知识》 | F21: 95.72 | G21: 0 | H21: 63.81
A22: 814704742 | B22: 安龙县督查督办服务中心(202301) | C22: 20230101 | D22: 20231021522 | E22: 《公共基础知识》 | F22: 95.62 | G22: 0 | H22: 63.75
A23: 812189289 | B23: 安龙县督查督办服务中心(202301) | C23: 20230101 | D23: 20231034220 | E23: 《公共基础知识》 | F23: 92.62 | G23: 2 | H23: 63.75
A24: 87484190 | B24: 安龙县督查督办服务中心(202301) | C24: 20230101 | D24: 20231060222 | E24: 《公共基础知识》 | F24: 92.62 | G24: 2 | H24: 63.75
A25: 82340411 | B25: 安龙县督查督办服务中心(202301) | C25: 20230101 | D25: 20231081530 | E25: 《公共基础知识》 | F25: 92.38 | G25: 2 | H25: 63.59
A26: 86194167 | B26: 安龙县督查督办服务中心(202301) | C26: 20230101 | D26: 20231062619 | E26: 《公共基础知识》 | F26: 95.22 | G26: 0 | H26: 63.48
A27: 82104765 | B27: 安龙县督查督办服务中心(202301) | C27: 20230101 | D27: 20231081910 | E27: 《公共基础知识》 | F27: 95.2 | G27: 0 | H27: 63.47
A28: 88503360 | B28: 安龙县督查督办服务中心(202301) | C28: 20230101 | D28: 20231052022 | E28: 《公共基础知识》 | F28: 92.08 | G28: 2 | H28: 63.39
A29: 85008687 | B29: 安龙县督查督办服务中心(202301) | C29: 20230101 | D29: 20231071130 | E29: 《公共基础知识》 | F29: 94.98 | G29: 0 | H29: 63.32
A30: 83762922 | B30: 安龙县督查督办服务中心(202301) | C30: 20230101 | D30: 20231073119 | E30: 《公共基础知识》 | F30: 91.82 | G30: 2 | H30: 63.21
A31: 811790973 | B31: 安龙县督查督办服务中心(202301) | C31: 20230101 | D31: 20231035001 | E31: 《公共基础知识》 | F31: 91.3 | G31: 2 | H31: 62.87
A32: 813376308 | B32: 安龙县督查督办服务中心(202301) | C32: 20230101 | D32: 20231032115 | E32: 《公共基础知识》 | F32: 91.2 | G32: 2 | H32: 62.80
A33: 89224625 | B33: 安龙县督查督办服务中心(202301) | C33: 20230101 | D33: 20231050722 | E33: 《公共基础知识》 | F33: 93.48 | G33: 0 | H33: 62.32
A34: 810303427 | B34: 安龙县督查督办服务中心(202301) | C34: 20230101 | D34: 20231042007 | E34: 《公共基础知识》 | F34: 90.34 | G34: 2 | H34: 62.23
A35: 812565867 | B35: 安龙县督查督办服务中心(202301) | C35: 20230101 | D35: 20231033527 | E35: 《公共基础知识》 | F35: 90.14 | G35: 2 | H35: 62.09
A36: 82338192 | B36: 安龙县督查督办服务中心(202301) | C36: 20230101 | D36: 20231081601 | E36: 《公共基础知识》 | F36: 90.12 | G36: 2 | H36: 62.08
A37: 83270996 | B37: 安龙县督查督办服务中心(202301) | C37: 20230101 | D37: 20231080117 | E37: 《公共基础知识》 | F37: 90.06 | G37: 2 | H37: 62.04
A38: 813782723 | B38: 安龙县督查督办服务中心(202301) | C38: 20230101 | D38: 20231031403 | E38: 《公共基础知识》 | F38: 92.98 | G38: 0 | H38: 61.99
A39: 88109191 | B39: 安龙县督查督办服务中心(202301) | C39: 20230101 | D39: 20231052726 | E39: 《公共基础知识》 | F39: 92.9 | G39: 0 | H39: 61.93
A40: 817858416 | B40: 安龙县督查督办服务中心(202301) | C40: 20230101 | D40: 20231011111 | E40: 《公共基础知识》 | F40: 89.72 | G40: 2 | H40: 61.81
A41: 818082968 | B41: 安龙县督查督办服务中心(202301) | C41: 20230101 | D41: 20231010804 | E41: 《公共基础知识》 | F41: 92.58 | G41: 0 | H41: 61.72
A42: 87002878 | B42: 安龙县督查督办服务中心(202301) | C42: 20230101 | D42: 20231061208 | E42: 《公共基础知识》 | F42: 92.56 | G42: 0 | H42: 61.71
A43: 814059973 | B43: 安龙县督查督办服务中心(202301) | C43: 20230101 | D43: 20231030910 | E43: 《公共基础知识》 | F43: 89.26 | G43: 2 | H43: 61.51
A44: 84790155 | B44: 安龙县督查督办服务中心(202301) | C44: 20230101 | D44: 20231071509 | E44: 《公共基础知识》 | F44: 92.22 | G44: 0 | H44: 61.48
A45: 85670236 | B45: 安龙县督查督办服务中心(202301) | C45: 20230101 | D45: 20231070119 | E45: 《公共基础知识》 | F45: 92.2 | G45: 0 | H45: 61.47
A46: 818581363 | B46: 安龙县督查督办服务中心(202301) | C46: 20230101 | D46: 20231010124 | E46: 《公共基础知识》 | F46: 89.18 | G46: 2 | H46: 61.45
A47: 813193310 | B47: 安龙县督查督办服务中心(202301) | C47: 20230101 | D47: 20231032509 | E47: 《公共基础知识》 | F47: 92.16 | G47: 0 | H47: 61.44
A48: 816721299 | B48: 安龙县督查督办服务中心(202301) | C48: 20230101 | D48: 20231012923 | E48: 《公共基础知识》 | F48: 92.12 | G48: 0 | H48: 61.41
A49: 84963469 | B49: 安龙县督查督办服务中心(202301) | C49: 20230101 | D49: 20231071221 | E49: 《公共基础知识》 | F49: 91.96 | G49: 0 | H49: 61.31
A50: 89108192 | B50: 安龙县督查督办服务中心(202301) | C50: 20230101 | D50: 20231050917 | E50: 《公共基础知识》 | F50: 88.94 | G50: 2 | H50: 61.29
A51: 85727725 | B51: 安龙县督查督办服务中心(202301) | C51: 20230101 | D51: 20231063414 | E51: 《公共基础知识》 | F51: 88.94 | G51: 2 | H51: 61.29
A52: 8173699 | B52: 安龙县督查督办服务中心(202301) | C52: 20230101 | D52: 20231101927 | E52: 《公共基础知识》 | F52: 88.56 | G52: 2 | H52: 61.04
A53: 810796357 | B53: 安龙县督查督办服务中心(202301) | C53: 20230101 | D53: 20231041029 | E53: 《公共基础知识》 | F53: 91.4 | G53: 0 | H53: 60.93
A54: 89104584 | B54: 安龙县督查督办服务中心(202301) | C54: 20230101 | D54: 20231050921 | E54: 《公共基础知识》 | F54: 88.4 | G54: 2 | H54: 60.93
A55: 87905146 | B55: 安龙县督查督办服务中心(202301) | C55: 20230101 | D55: 20231053124 | E55: 《公共基础知识》 | F55: 88.4 | G55: 2 | H55: 60.93
A56: 87859774 | B56: 安龙县督查督办服务中心(202301) | C56: 20230101 | D56: 20231053226 | E56: 《公共基础知识》 | F56: 91.2 | G56: 0 | H56: 60.80
A57: 85072255 | B57: 安龙县督查督办服务中心(202301) | C57: 20230101 | D57: 20231071028 | E57: 《公共基础知识》 | F57: 91.2 | G57: 0 | H57: 60.80
A58: 83137200 | B58: 安龙县督查督办服务中心(202301) | C58: 20230101 | D58: 20231080319 | E58: 《公共基础知识》 | F58: 88.14 | G58: 2 | H58: 60.76
A59: 8886831 | B59: 安龙县督查督办服务中心(202301) | C59: 20230101 | D59: 20231100728 | E59: 《公共基础知识》 | F59: 88.02 | G59: 2 | H59: 60.68
A60: 812626388 | B60: 安龙县督查督办服务中心(202301) | C60: 20230101 | D60: 20231033503 | E60: 《公共基础知识》 | F60: 90.72 | G60: 0 | H60: 60.48
A61: 816809282 | B61: 安龙县督查督办服务中心(202301) | C61: 20230101 | D61: 20231012808 | E61: 《公共基础知识》 | F61: 87.7 | G61: 2 | H61: 60.47
A62: 816178168 | B62: 安龙县督查督办服务中心(202301) | C62: 20230101 | D62: 20231013807 | E62: 《公共基础知识》 | F62: 87.46 | G62: 2 | H62: 60.31
A63: 85162500 | B63: 安龙县督查督办服务中心(202301) | C63: 20230101 | D63: 20231070927 | E63: 《公共基础知识》 | F63: 90.34 | G63: 0 | H63: 60.23
A64: 84004600 | B64: 安龙县督查督办服务中心(202301) | C64: 20230101 | D64: 20231072730 | E64: 《公共基础知识》 | F64: 87.24 | G64: 2 | H64: 60.16
A65: 816368169 | B65: 安龙县督查督办服务中心(202301) | C65: 20230101 | D65: 20231013509 | E65: 《公共基础知识》 | F65: 87.2 | G65: 2 | H65: 60.13
A66: 813131876 | B66: 安龙县督查督办服务中心(202301) | C66: 20230101 | D66: 20231032613 | E66: 《公共基础知识》 | F66: 90.02 | G66: 0 | H66: 60.01
A67: 811898706 | B67: 安龙县督查督办服务中心(202301) | C67: 20230101 | D67: 20231034804 | E67: 《公共基础知识》 | F67: 90.02 | G67: 0 | H67: =F67/1.5+G67 -> 60.01
A68: 86624575 | B68: 安龙县督查督办服务中心(202301) | C68: 20230101 | D68: 20231061911 | E68: 《公共基础知识》 | F68: 89.96 | G68: 0 | H68: 59.97
A69: 84605846 | B69: 安龙县督查督办服务中心(202301) | C69: 20230101 | D69: 20231071811 | E69: 《公共基础知识》 | F69: 86.96 | G69: 2 | H69: 59.97
A70: 83468491 | B70: 安龙县督查督办服务中心(202301) | C70: 20230101 | D70: 20231073603 | E70: 《公共基础知识》 | F70: 86.82 | G70: 2 | H70: 59.88
A71: 84403800 | B71: 安龙县督查督办服务中心(202301) | C71: 20230101 | D71: 20231072123 | E71: 《公共基础知识》 | F71: 86.8 | G71: 2 | H71: 59.87
A72: 816371943 | B72: 安龙县督查督办服务中心(202301) | C72: 20230101 | D72: 20231013508 | E72: 《公共基础知识》 | F72: 89.7 | G72: 0 | H72: 59.80
A73: 89411750 | B73: 安龙县督查督办服务中心(202301) | C73: 20230101 | D73: 20231050407 | E73: 《公共基础知识》 | F73: 89.64 | G73: 0 | H73: 59.76
A74: 85555981 | B74: 安龙县督查督办服务中心(202301) | C74: 20230101 | D74: 20231070322 | E74: 《公共基础知识》 | F74: 89.48 | G74: 0 | H74: 59.65
A75: 87977704 | B75: 安龙县督查督办服务中心(202301) | C75: 20230101 | D75: 20231053009 | E75: 《公共基础知识》 | F75: 86.46 | G75: 2 | H75: 59.64
A76: 83792235 | B76: 安龙县督查督办服务中心(202301) | C76: 20230101 | D76: 20231073106 | E76: 《公共基础知识》 | F76: 89.24 | G76: 0 | H76: 59.49
A77: 87841514 | B77: 安龙县督查督办服务中心(202301) | C77: 20230101 | D77: 20231053306 | E77: 《公共基础知识》 | F77: 86.18 | G77: 2 | H77: 59.45
A78: 815288862 | B78: 安龙县督查督办服务中心(202301) | C78: 20230101 | D78: 20231020523 | E78: 《公共基础知识》 | F78: 89.02 | G78: 0 | H78: 59.35
A79: 83650278 | B79: 安龙县督查督办服务中心(202301) | C79: 20230101 | D79: 20231073306 | E79: 《公共基础知识》 | F79: 85.98 | G79: 2 | H79: 59.32
A80: 87344936 | B80: 安龙县督查督办服务中心(202301) | C80: 20230101 | D80: 20231060512 | E80: 《公共基础知识》 | F80: 85.94 | G80: 2 | H80: 59.29
A81: 82914640 | B81: 安龙县督查督办服务中心(202301) | C81: 20230101 | D81: 20231080703 | E81: 《公共基础知识》 | F81: 85.84 | G81: 2 | H81: 59.23
A82: 88020684 | B82: 安龙县督查督办服务中心(202301) | C82: 20230101 | D82: 20231052910 | E82: 《公共基础知识》 | F82: 85.8 | G82: 2 | H82: 59.20
A83: 8355524 | B83: 安龙县督查督办服务中心(202301) | C83: 20230101 | D83: 20231101618 | E83: 《公共基础知识》 | F83: 85.72 | G83: 2 | H83: 59.15
A84: 811014387 | B84: 安龙县督查督办服务中心(202301) | C84: 20230101 | D84: 20231040701 | E84: 《公共基础知识》 | F84: 85.64 | G84: 2 | H84: 59.09
A85: 82780361 | B85: 安龙县督查督办服务中心(202301) | C85: 20230101 | D85: 20231080906 | E85: 《公共基础知识》 | F85: 85.6 | G85: 2 | H85: 59.07
A86: 88676193 | B86: 安龙县督查督办服务中心(202301) | C86: 20230101 | D86: 20231051711 | E86: 《公共基础知识》 | F86: 88.56 | G86: 0 | H86: 59.04
A87: 817118129 | B87: 安龙县督查督办服务中心(202301) | C87: 20230101 | D87: 20231012230 | E87: 《公共基础知识》 | F87: 85.44 | G87: 2 | H87: 58.96
A88: 815909719 | B88: 安龙县督查督办服务中心(202301) | C88: 20230101 | D88: 20231014225 | E88: 《公共基础知识》 | F88: 85.38 | G88: 2 | H88: 58.92
A89: 86099380 | B89: 安龙县督查督办服务中心(202301) | C89: 20230101 | D89: 20231062810 | E89: 《公共基础知识》 | F89: 88.34 | G89: 0 | H89: 58.89
A90: 818380461 | B90: 安龙县督查督办服务中心(202301) | C90: 20230101 | D90: 20231010404 | E90: 《公共基础知识》 | F90: 88.32 | G90: 0 | H90: 58.88
A91: 814928500 | B91: 安龙县督查督办服务中心(202301) | C91: 20230101 | D91: 20231021121 | E91: 《公共基础知识》 | F91: 88.3 | G91: 0 | H91: 58.87
A92: 87413660 | B92: 安龙县督查督办服务中心(202301) | C92: 20230101 | D92: 20231060326 | E92: 《公共基础知识》 | F92: 88.22 | G92: 0 | H92: 58.81
A93: 88102137 | B93: 安龙县督查督办服务中心(202301) | C93: 20230101 | D93: 20231052730 | E93: 《公共基础知识》 | F93: 88.18 | G93: 0 | H93: 58.79
A94: 83489186 | B94: 安龙县督查督办服务中心(202301) | C94: 20230101 | D94: 20231073520 | E94: 《公共基础知识》 | F94: 88.16 | G94: 0 | H94: 58.77
A95: 86613422 | B95: 安龙县督查督办服务中心(202301) | C95: 20230101 | D95: 20231061919 | E95: 《公共基础知识》 | F95: 85.04 | G95: 2 | H95: 58.69
A96: 84355254 | B96: 安龙县督查督办服务中心(202301) | C96: 20230101 | D96: 20231072215 | E96: 《公共基础知识》 | F96: 84.92 | G96: 2 | H96: 58.61
A97: 813418402 | B97: 安龙县督查督办服务中心(202301) | C97: 20230101 | D97: 20231032019 | E97: 《公共基础知识》 | F97: 84.86 | G97: 2 | H97: 58.57
A98: 817256993 | B98: 安龙县督查督办服务中心(202301) | C98: 20230101 | D98: 20231012029 | E98: 《公共基础知识》 | F98: 84.84 | G98: 2 | H98: 58.56
A99: 88689352 | B99: 安龙县督查督办服务中心(202301) | C99: 20230101 | D99: 20231051701 | E99: 《公共基础知识》 | F99: 84.74 | G99: 2 | H99: 58.49
A100: 811471871 | B100: 安龙县督查督办服务中心(202301) | C100: 20230101 | D100: 20231035513 | E100: 《公共基础知识》 | F100: 84.6 | G100: 2 | H100: 58.40
A101: 88949605 | B101: 安龙县督查督办服务中心(202301) | C101: 20230101 | D101: 20231051215 | E101: 《公共基础知识》 | F101: 84.6 | G101: 2 | H101: 58.40
A102: 81562353 | B102: 安龙县督查督办服务中心(202301) | C102: 20230101 | D102: 20231082721 | E102: 《公共基础知识》 | F102: 84.58 | G102: 2 | H102: 58.39
A103: 811886535 | B103: 安龙县督查督办服务中心(202301) | C103: 20230101 | D103: 20231034812 | E103: 《公共基础知识》 | F103: 87.54 | G103: 0 | H103: 58.36
A104: 817586829 | B104: 安龙县督查督办服务中心(202301) | C104: 20230101 | D104: 20231011508 | E104: 《公共基础知识》 | F104: 87.44 | G104: 0 | H104: 58.29
A105: 811445947 | B105: 安龙县督查督办服务中心(202301) | C105: 20230101 | D105: 20231035601 | E105: 《公共基础知识》 | F105: 84.42 | G105: 2 | H105: 58.28
A106: 86136781 | B106: 安龙县督查督办服务中心(202301) | C106: 20230101 | D106: 20231062719 | E106: 《公共基础知识》 | F106: 87.26 | G106: 0 | H106: 58.17
A107: 81517484 | B107: 安龙县督查督办服务中心(202301) | C107: 20230101 | D107: 20231082816 | E107: 《公共基础知识》 | F107: 87.24 | G107: 0 | H107: 58.16
A108: 814231551 | B108: 安龙县督查督办服务中心(202301) | C108: 20230101 | D108: 20231030522 | E108: 《公共基础知识》 | F108: 87.22 | G108: 0 | H108: 58.15
A109: 813914449 | B109: 安龙县督查督办服务中心(202301) | C109: 20230101 | D109: 20231031123 | E109: 《公共基础知识》 | F109: 87.22 | G109: 0 | H109: 58.15
A110: 84764357 | B110: 安龙县督查督办服务中心(202301) | C110: 20230101 | D110: 20231071523 | E110: 《公共基础知识》 | F110: 87.12 | G110: 0 | H110: 58.08
A111: 811003636 | B111: 安龙县督查督办服务中心(202301) | C111: 20230101 | D111: 20231040709 | E111: 《公共基础知识》 | F111: 87.04 | G111: 0 | H111: 58.03
A112: 812241956 | B112: 安龙县督查督办服务中心(202301) | C112: 20230101 | D112: 20231034116 | E112: 《公共基础知识》 | F112: 83.88 | G112: 2 | H112: 57.92
A113: 814052802 | B113: 安龙县督查督办服务中心(202301) | C113: 20230101 | D113: 20231030915 | E113: 《公共基础知识》 | F113: 83.8 | G113: 2 | H113: 57.87
A114: 89213253 | B114: 安龙县督查督办服务中心(202301) | C114: 20230101 | D114: 20231050728 | E114: 《公共基础知识》 | F114: 86.78 | G114: 0 | H114: 57.85
A115: 818134374 | B115: 安龙县督查督办服务中心(202301) | C115: 20230101 | D115: 20231010713 | E115: 《公共基础知识》 | F115: 86.7 | G115: 0 | H115: 57.80
A116: 815479594 | B116: 安龙县督查督办服务中心(202301) | C116: 20230101 | D116: 20231020202 | E116: 《公共基础知识》 | F116: 86.6 | G116: 0 | H116: 57.73
A117: 815278388 | B117: 安龙县督查督办服务中心(202301) | C117: 20230101 | D117: 20231020530 | E117: 《公共基础知识》 | F117: 86.5 | G117: 0 | H117: 57.67
A118: 812697739 | B118: 安龙县督查督办服务中心(202301) | C118: 20230101 | D118: 20231033401 | E118: 《公共基础知识》 | F118: 83.44 | G118: 2 | H118: 57.63
A119: 810311491 | B119: 安龙县督查督办服务中心(202301) | C119: 20230101 | D119: 20231042002 | E119: 《公共基础知识》 | F119: 86.36 | G119: 0 | H119: 57.57
A120: 8553263 | B120: 安龙县督查督办服务中心(202301) | C120: 20230101 | D120: 20231101319 | E120: 《公共基础知识》 | F120: 83.2 | G120: 2 | H120: 57.47
A121: 86931723 | B121: 安龙县督查督办服务中心(202301) | C121: 20230101 | D121: 20231061311 | E121: 《公共基础知识》 | F121: 86.16 | G121: 0 | H121: 57.44
A122: 82577694 | B122: 安龙县督查督办服务中心(202301) | C122: 20230101 | D122: 20231081212 | E122: 《公共基础知识》 | F122: 83.04 | G122: 2 | H122: 57.36
A123: 82090371 | B123: 安龙县督查督办服务中心(202301) | C123: 20230101 | D123: 20231081916 | E123: 《公共基础知识》 | F123: 86.02 | G123: 0 | H123: 57.35
A124: 87673375 | B124: 安龙县督查督办服务中心(202301) | C124: 20230101 | D124: 20231053611 | E124: 《公共基础知识》 | F124: 85.92 | G124: 0 | H124: 57.28
A125: 84430241 | B125: 安龙县督查督办服务中心(202301) | C125: 20230101 | D125: 20231072108 | E125: 《公共基础知识》 | F125: 85.9 | G125: 0 | H125: 57.27
A126: 813559671 | B126: 安龙县督查督办服务中心(202301) | C126: 20230101 | D126: 20231031808 | E126: 《公共基础知识》 | F126: 85.88 | G126: 0 | H126: 57.25
A127: 814913838 | B127: 安龙县督查督办服务中心(202301) | C127: 20230101 | D127: 20231021130 | E127: 《公共基础知识》 | F127: 85.72 | G127: 0 | H127: 57.15
A128: 85862415 | B128: 安龙县督查督办服务中心(202301) | C128: 20230101 | D128: 20231063208 | E128: 《公共基础知识》 | F128: 85.6 | G128: 0 | H128: 57.07
A129: 811733386 | B129: 安龙县督查督办服务中心(202301) | C129: 20230101 | D129: 20231035029 | E129: 《公共基础知识》 | F129: 82.58 | G129: 2 | H129: 57.05
A130: 817809539 | B130: 安龙县督查督办服务中心(202301) | C130: 20230101 | D130: 20231011202 | E130: 《公共基础知识》 | F130: 85.54 | G130: 0 | H130: 57.03
A131: 816524399 | B131: 安龙县督查督办服务中心(202301) | C131: 20230101 | D131: 20231013224 | E131: 《公共基础知识》 | F131: 82.44 | G131: 2 | H131: =F131/1.5+G131 -> 56.96
A132: 817649906 | B132: 安龙县督查督办服务中心(202301) | C132: 20230101 | D132: 20231011409 | E132: 《公共基础知识》 | F132: 85.4 | G132: 0 | H132: 56.93
A133: 810809634 | B133: 安龙县督查督办服务中心(202301) | C133: 20230101 | D133: 20231041021 | E133: 《公共基础知识》 | F133: 82.38 | G133: 2 | H133: 56.92
A134: 84542446 | B134: 安龙县督查督办服务中心(202301) | C134: 20230101 | D134: 20231071916 | E134: 《公共基础知识》 | F134: 82.22 | G134: 2 | H134: 56.81
A135: 813623846 | B135: 安龙县督查督办服务中心(202301) | C135: 20230101 | D135: 20231031701 | E135: 《公共基础知识》 | F135: 82.2 | G135: 2 | H135: 56.80
A136: 85709727 | B136: 安龙县督查督办服务中心(202301) | C136: 20230101 | D136: 20231063422 | E136: 《公共基础知识》 | F136: 82.2 | G136: 2 | H136: 56.80
A137: 8741302 | B137: 安龙县督查督办服务中心(202301) | C137: 20230101 | D137: 20231101007 | E137: 《公共基础知识》 | F137: 85.06 | G137: 0 | H137: 56.71
A138: 814402892 | B138: 安龙县督查督办服务中心(202301) | C138: 20230101 | D138: 20231030210 | E138: 《公共基础知识》 | F138: 81.96 | G138: 2 | H138: 56.64
A139: 86691394 | B139: 安龙县督查督办服务中心(202301) | C139: 20230101 | D139: 20231061808 | E139: 《公共基础知识》 | F139: 81.88 | G139: 2 | H139: 56.59
A140: 817052213 | B140: 安龙县督查督办服务中心(202301) | C140: 20230101 | D140: 20231012406 | E140: 《公共基础知识》 | F140: 84.84 | G140: 0 | H140: 56.56
A141: 83359221 | B141: 安龙县督查督办服务中心(202301) | C141: 20230101 | D141: 20231073728 | E141: 《公共基础知识》 | F141: 81.8 | G141: 2 | H141: 56.53
A142: 816019356 | B142: 安龙县督查督办服务中心(202301) | C142: 20230101 | D142: 20231014029 | E142: 《公共基础知识》 | F142: 81.76 | G142: 2 | H142: 56.51
A143: 87948649 | B143: 安龙县督查督办服务中心(202301) | C143: 20230101 | D143: 20231053025 | E143: 《公共基础知识》 | F143: 84.76 | G143: 0 | H143: 56.51
A144: 816791271 | B144: 安龙县督查督办服务中心(202301) | C144: 20230101 | D144: 20231012819 | E144: 《公共基础知识》 | F144: 81.72 | G144: 2 | H144: 56.48
A145: 811644746 | B145: 安龙县督查督办服务中心(202301) | C145: 20230101 | D145: 20231035217 | E145: 《公共基础知识》 | F145: 84.7 | G145: 0 | H145: 56.47
A146: 815495804 | B146: 安龙县督查督办服务中心(202301) | C146: 20230101 | D146: 20231020123 | E146: 《公共基础知识》 | F146: 81.66 | G146: 2 | H146: 56.44
A147: 84531606 | B147: 安龙县督查督办服务中心(202301) | C147: 20230101 | D147: 20231071922 | E147: 《公共基础知识》 | F147: 84.66 | G147: 0 | H147: 56.44
A148: 83677560 | B148: 安龙县督查督办服务中心(202301) | C148: 20230101 | D148: 20231073227 | E148: 《公共基础知识》 | F148: 84.58 | G148: 0 | H148: 56.39
A149: 89261338 | B149: 安龙县督查督办服务中心(202301) | C149: 20230101 | D149: 20231050628 | E149: 《公共基础知识》 | F149: 84.56 | G149: 0 | H149: 56.37
A150: 84091794 | B150: 安龙县督查督办服务中心(202301) | C150: 20230101 | D150: 20231072621 | E150: 《公共基础知识》 | F150: 81.46 | G150: 2 | H150: 56.31
A151: 87406454 | B151: 安龙县督查督办服务中心(202301) | C151: 20230101 | D151: 20231060402 | E151: 《公共基础知识》 | F151: 84.2 | G151: 0 | H151: 56.13
A152: 818252288 | B152: 安龙县督查督办服务中心(202301) | C152: 20230101 | D152: 20231010525 | E152: 《公共基础知识》 | F152: 81.14 | G152: 2 | H152: 56.09
A153: 83716584 | B153: 安龙县督查督办服务中心(202301) | C153: 20230101 | D153: 20231073212 | E153: 《公共基础知识》 | F153: 83.98 | G153: 0 | H153: 55.99
A154: 84871258 | B154: 安龙县督查督办服务中心(202301) | C154: 20230101 | D154: 20231071403 | E154: 《公共基础知识》 | F154: 80.94 | G154: 2 | H154: 55.96
A155: 8620622 | B155: 安龙县督查督办服务中心(202301) | C155: 20230101 | D155: 20231101216 | E155: 《公共基础知识》 | F155: 83.9 | G155: 0 | H155: 55.93
A156: 86878532 | B156: 安龙县督查督办服务中心(202301) | C156: 20230101 | D156: 20231061417 | E156: 《公共基础知识》 | F156: 83.8 | G156: 0 | H156: 55.87
A157: 86301801 | B157: 安龙县督查督办服务中心(202301) | C157: 20230101 | D157: 20231062425 | E157: 《公共基础知识》 | F157: 83.74 | G157: 0 | H157: 55.83
A158: 814527908 | B158: 安龙县督查督办服务中心(202301) | C158: 20230101 | D158: 20231021901 | E158: 《公共基础知识》 | F158: 83.72 | G158: 0 | H158: 55.81
A159: 812371521 | B159: 安龙县督查督办服务中心(202301) | C159: 20230101 | D159: 20231033912 | E159: 《公共基础知识》 | F159: 83.6 | G159: 0 | H159: 55.73
A160: 87149702 | B160: 安龙县督查督办服务中心(202301) | C160: 20230101 | D160: 20231060904 | E160: 《公共基础知识》 | F160: 83.54 | G160: 0 | H160: 55.69
A161: 83324728 | B161: 安龙县督查督办服务中心(202301) | C161: 20230101 | D161: 20231073818 | E161: 《公共基础知识》 | F161: 83.5 | G161: 0 | H161: 55.67
A162: 83207805 | B162: 安龙县督查督办服务中心(202301) | C162: 20230101 | D162: 20231080215 | E162: 《公共基础知识》 | F162: 80.42 | G162: 2 | H162: 55.61
A163: 818010784 | B163: 安龙县督查督办服务中心(202301) | C163: 20230101 | D163: 20231010910 | E163: 《公共基础知识》 | F163: 80.3 | G163: 2 | H163: 55.53
A164: 8415561 | B164: 安龙县督查督办服务中心(202301) | C164: 20230101 | D164: 20231101519 | E164: 《公共基础知识》 | F164: 80.28 | G164: 2 | H164: 55.52
A165: 815012150 | B165: 安龙县督查督办服务中心(202301) | C165: 20230101 | D165: 20231021004 | E165: 《公共基础知识》 | F165: 83.22 | G165: 0 | H165: 55.48
A166: 813513655 | B166: 安龙县督查督办服务中心(202301) | C166: 20230101 | D166: 20231031906 | E166: 《公共基础知识》 | F166: 83.14 | G166: 0 | H166: 55.43
A167: 818393673 | B167: 安龙县督查督办服务中心(202301) | C167: 20230101 | D167: 20231010330 | E167: 《公共基础知识》 | F167: 80.1 | G167: 2 | H167: 55.40
A168: 83445822 | B168: 安龙县督查督办服务中心(202301) | C168: 20230101 | D168: 20231073614 | E168: 《公共基础知识》 | F168: 83.1 | G168: 0 | H168: 55.40
A169: 810987551 | B169: 安龙县督查督办服务中心(202301) | C169: 20230101 | D169: 20231040721 | E169: 《公共基础知识》 | F169: 80.08 | G169: 2 | H169: 55.39
A170: 84927269 | B170: 安龙县督查督办服务中心(202301) | C170: 20230101 | D170: 20231071306 | E170: 《公共基础知识》 | F170: 80.08 | G170: 2 | H170: 55.39
A171: 810774649 | B171: 安龙县督查督办服务中心(202301) | C171: 20230101 | D171: 20231041112 | E171: 《公共基础知识》 | F171: 83.06 | G171: 0 | H171: 55.37
A172: 810991131 | B172: 安龙县督查督办服务中心(202301) | C172: 20230101 | D172: 20231040719 | E172: 《公共基础知识》 | F172: 80.04 | G172: 2 | H172: 55.36
A173: 814350737 | B173: 安龙县督查督办服务中心(202301) | C173: 20230101 | D173: 20231030314 | E173: 《公共基础知识》 | F173: 83.02 | G173: 0 | H173: 55.35
A174: 85032503 | B174: 安龙县督查督办服务中心(202301) | C174: 20230101 | D174: 20231071120 | E174: 《公共基础知识》 | F174: 82.96 | G174: 0 | H174: 55.31
A175: 811846945 | B175: 安龙县督查督办服务中心(202301) | C175: 20230101 | D175: 20231034829 | E175: 《公共基础知识》 | F175: 82.94 | G175: 0 | H175: 55.29
A176: 814724871 | B176: 安龙县督查督办服务中心(202301) | C176: 20230101 | D176: 20231021515 | E176: 《公共基础知识》 | F176: 79.9 | G176: 2 | H176: 55.27
A177: 814764834 | B177: 安龙县督查督办服务中心(202301) | C177: 20230101 | D177: 20231021420 | E177: 《公共基础知识》 | F177: 79.88 | G177: 2 | H177: 55.25
A178: 8924352 | B178: 安龙县督查督办服务中心(202301) | C178: 20230101 | D178: 20231100708 | E178: 《公共基础知识》 | F178: 82.86 | G178: 0 | H178: 55.24
A179: 812159207 | B179: 安龙县督查督办服务中心(202301) | C179: 20230101 | D179: 20231034311 | E179: 《公共基础知识》 | F179: 82.82 | G179: 0 | H179: 55.21
A180: 85066529 | B180: 安龙县督查督办服务中心(202301) | C180: 20230101 | D180: 20231071102 | E180: 《公共基础知识》 | F180: 82.82 | G180: 0 | H180: 55.21
A181: 89569911 | B181: 安龙县督查督办服务中心(202301) | C181: 20230101 | D181: 20231050106 | E181: 《公共基础知识》 | F181: 79.68 | G181: 2 | H181: 55.12
A182: 813719482 | B182: 安龙县督查督办服务中心(202301) | C182: 20230101 | D182: 20231031507 | E182: 《公共基础知识》 | F182: 82.62 | G182: 0 | H182: 55.08
A183: 87934917 | B183: 安龙县督查督办服务中心(202301) | C183: 20230101 | D183: 20231053107 | E183: 《公共基础知识》 | F183: 79.6 | G183: 2 | H183: 55.07
A184: 81718768 | B184: 安龙县督查督办服务中心(202301) | C184: 20230101 | D184: 20231082428 | E184: 《公共基础知识》 | F184: 79.58 | G184: 2 | H184: 55.05
A185: 89543188 | B185: 安龙县督查督办服务中心(202301) | C185: 20230101 | D185: 20231050119 | E185: 《公共基础知识》 | F185: 82.46 | G185: 0 | H185: 54.97
A186: 84980180 | B186: 安龙县督查督办服务中心(202301) | C186: 20230101 | D186: 20231071214 | E186: 《公共基础知识》 | F186: 82.44 | G186: 0 | H186: 54.96
A187: 812487115 | B187: 安龙县督查督办服务中心(202301) | C187: 20230101 | D187: 20231033711 | E187: 《公共基础知识》 | F187: 79.38 | G187: 2 | H187: 54.92
A188: 814513447 | B188: 安龙县督查督办服务中心(202301) | C188: 20230101 | D188: 20231021910 | E188: 《公共基础知识》 | F188: 79.28 | G188: 2 | H188: 54.85
A189: 812268342 | B189: 安龙县督查督办服务中心(202301) | C189: 20230101 | D189: 20231034103 | E189: 《公共基础知识》 | F189: 82.26 | G189: 0 | H189: 54.84
A190: 81149730 | B190: 安龙县督查督办服务中心(202301) | C190: 20230101 | D190: 20231100317 | E190: 《公共基础知识》 | F190: 82.16 | G190: 0 | H190: 54.77
A191: 88200991 | B191: 安龙县督查督办服务中心(202301) | C191: 20230101 | D191: 20231052604 | E191: 《公共基础知识》 | F191: 82.14 | G191: 0 | H191: 54.76
A192: 8988694 | B192: 安龙县督查督办服务中心(202301) | C192: 20230101 | D192: 20231100608 | E192: 《公共基础知识》 | F192: 82.06 | G192: 0 | H192: 54.71
A193: 84269453 | B193: 安龙县督查督办服务中心(202301) | C193: 20230101 | D193: 20231072325 | E193: 《公共基础知识》 | F193: 81.9 | G193: 0 | H193: 54.60
A194: 81266660 | B194: 安龙县督查督办服务中心(202301) | C194: 20230101 | D194: 20231100111 | E194: 《公共基础知识》 | F194: 81.86 | G194: 0 | H194: 54.57
A195: 81877854 | B195: 安龙县督查督办服务中心(202301) | C195: 20230101 | D195: 20231082213 | E195: 《公共基础知识》 | F195: 78.8 | G195: 2 | H195: =F195/1.5+G195 -> 54.53
A196: 813791870 | B196: 安龙县督查督办服务中心(202301) | C196: 20230101 | D196: 20231031328 | E196: 《公共基础知识》 | F196: 78.7 | G196: 2 | H196: 54.47
A197: 810385979 | B197: 安龙县督查督办服务中心(202301) | C197: 20230101 | D197: 20231041812 | E197: 《公共基础知识》 | F197: 81.58 | G197: 0 | H197: 54.39
A198: 817760889 | B198: 安龙县督查督办服务中心(202301) | C198: 20230101 | D198: 20231011226 | E198: 《公共基础知识》 | F198: 81.52 | G198: 0 | H198: 54.35
A199: 85618566 | B199: 安龙县督查督办服务中心(202301) | C199: 20230101 | D199: 20231070217 | E199: 《公共基础知识》 | F199: 78.52 | G199: 2 | H199: 54.35
A200: 810711937 | B200: 安龙县督查督办服务中心(202301) | C200: 20230101 | D200: 20231041211 | E200: 《公共基础知识》 | F200: 81.44 | G200: 0 | H200: 54.29
... 10807 more rows
